Cogmind - Beta 17.1 @@@ ROGUE MODE // 2026.09.24 @ 22:56:57 Player: chmiel Result: Destroyed by Y-45 Defender with Beam Rifle Performance ------------- Evolutions (2) 1000 Regions Visited (3) 600 Robots Destroyed (21) 105 Value Destroyed (483) 483 Prototype IDs (2) 40 Alien Tech Used (0) 0 Bonus (0) 0 TOTAL SCORE: 2228 Bonus ------- None Cogmind --------- Core Integrity 0/550 Matter 214/300 Energy 100/100 System Corruption 0% Temperature Cool (9) Movement Core (50) Location -8/Materials Parts ------- > --- POWER (1) -------- (None) > --- PROPULSION (4) --- (None) > --- UTILITY (4) ------ (None) > --- WEAPON (2) ------- Heavy Flail > --- INVENTORY (5) ---- (None) Peak State ------------ > --- POWER ------------ Light Ion Engine > --- PROPULSION ------- Airjet Airjet > --- UTILITY ---------- Medium Storage Unit Seismic Detector Melee Analysis Suite Reaction Control System > --- WEAPON ----------- Heavy EM Pulse Gun > --- INVENTORY -------- (None) [Rating: 17] Favorites ----------- Power Ion Engine Engine Ion Engine Propulsion Aluminum Leg Treads Light Treads Leg Aluminum Leg Hover Unit Airjet Utility Small Storage Unit Device Seismic Detector Storage Small Storage Unit Processor Transport Network Coupler Protection Light Armor Plating Weapon Assault Rifle Energy Gun Heavy EM Pulse Gun Ballistic Gun Assault Rifle Ballistic Cannon Light Cannon Impact Weapon Heavy Flail Special Melee Weapon Datajack Build | -11 -10 -9 -8 ------- Run | Yrd Mat Mat Mat Slots Evolved 4 | . . 2 2 Power . | . . . . Propulsion 2 | . . 1 1 Utility 2 | . . 1 1 Weapon . | . . . . Parts Attached 29 | 7 5 6 11 Power 4 | 1 1 1 1 Engine 4 | 1 1 1 1 Core . | . . . . Reactor . | . . . . Propulsion 7 | 2 . 3 2 Treads 2 | . . 2 . Leg 3 | 2 . 1 . Wheel . | . . . . Hover 2 | . . . 2 Flight . | . . . . Utility 9 | 1 2 2 4 Device 4 | . 1 1 2 Storage 2 | 1 . . 1 Processor 2 | . 1 . 1 Hackware . | . . . . Protection 1 | . . 1 . Artifact . | . . . . Weapon 9 | 3 2 . 4 Energy Gun 1 | . . . 1 Energy Cannon . | . . . . Ballistic Gun 5 | 3 . . 2 Ballistic Cannon 1 | . 1 . . Launcher . | . . . . Special Weapon . | . . . . Impact Weapon 1 | . . . 1 Slashing Weapon . | . . . . Piercing Weapon . | . . . . Special Melee Weapon 1 | . 1 . . Unidentified Prototypes . | . . . . Parts Lost 19 | . . 14 5 Power 2 | . . 2 . Propulsion 7 | . . 5 2 Utility 4 | . . 3 1 Weapon 6 | . . 4 2 Highest Loss Streak 11 | . . 11 3 To Critical Strikes . | . . . . Average Backups 4 | 3 7 4 . Power . | . . . . Propulsion 1 | 2 3 1 . Utility . | . 1 1 . Weapon . | . 1 . . Tool/Special . | . . . . Unused Backups 3 | . 3 . . Power 1 | . 1 . . Propulsion 2 | . 2 . . Utility . | . . . . Weapon . | . . . . Tool/Special . | . . . . Average Slot Usage (%) 70 | . 96 69 28 Engine 8 | . 14 6 1 Treads 1 | . . 3 . Leg 16 | . 26 16 . Hover 1 | . . . 7 Device 7 | . 9 4 8 Storage 9 | . 14 9 2 Processor 5 | . 2 9 4 Ballistic Gun 10 | . 16 7 2 Ballistic Cannon 4 | . 8 3 . Special Melee Weapon 2 | . 2 5 . Peak Build Rating 17 | 6 7 9 17 Average Rating 6 | 4 6 6 7 On Entrance 3 | . 6 7 . Avg Prop Armor Cover (%) . | . . . . Naked Turns 85 | . . 28 57 Heaviest Build 18 | 12 16 15 18 Greatest Support 40 | 20 20 40 16 Greatest Overweight (x) 3 | 3 . 1 2 Average Overweight (x) . | . . . . Largest Inventory Capacity 10 | 8 8 8 10 Average Capacity 7 | 7 8 7 6 Most Carried 8 | 6 8 7 3 Average Carried 4 | 4 7 4 . Final Capacity 8 | 8 8 5 5 Final Carried 7 | 6 7 . . Class Distribution -------------------- 100% | Mutant Dominant Class ---------------- Mutant | -10/Materials Mutant | -9/Materials Mutant | -8/Materials Resources | -11 -10 -9 -8 ----------- Run | Yrd Mat Mat Mat Matter Collected 730 | 279 89 185 177 Remotely . | . . . . Salvage Created 634 | . 178 332 124 Parts 35 | . 9 17 9 Haulers Intercepted 1 | . 1 . . Recyclers Shooed . | . . . . Parts Field Recycled . | . . . . Retrieved Matter . | . . . . Parts Self-Destructed . | . . . . Prevented . | . . . . Parts Restored . | . . . . Kills | -11 -10 -9 -8 ------- Run | Yrd Mat Mat Mat Combat Hostiles Destroyed 18 | . 3 10 5 Guns 13 | . 1 7 5 Cannons 5 | . 2 3 . Classes Destroyed 6 | . 5 1 . Builder 1 | . 1 . . Hauler 1 | . 1 . . Recycler 1 | . 1 . . Swarmer 8 | . 2 3 3 Grunt 9 | . 1 6 2 Sentry 1 | . . 1 . Best Kill Streak 5 | . 4 5 5 Combat Bots Only 5 | . 2 5 5 Max Kills in Single Turn 1 | . 1 1 1 Gunslinging . | . . . . Exploded . | . . . . Melee . | . . . . Uniques/NPCs Destroyed . | . . . . Combat | -11 -10 -9 -8 -------- Run | Yrd Mat Mat Mat Hostile Shots Fired 312 | . 35 159 118 Missed 98 | . 13 43 42 Hits 214 | . 22 116 76 Projectile 214 | . 22 116 76 AOE 1 | . . 1 . Critical Strikes 9 | . . 3 6 Damage Taken 2769 | . 180 1522 1067 Core 875 | . 27 293 555 Absorbed by Shields 62 | . . 62 . Regen/Repaired (Parts) 52 | . 52 . . Core Remaining (%) 71 | 100 89 26 . Volleys Fired 62 | 3 17 33 9 Largest 2 | 1 2 2 2 Hottest 50 | 20 50 50 46 Shots Fired 104 | 3 33 50 18 Gun 71 | 3 17 33 18 Cannon 33 | . 16 17 . Launcher . | . . . . Special . | . . . . Kinetic 104 | 3 33 50 18 Thermal . | . . . . Explosive . | . . . . Electromagnetic . | . . . . Robot Hit Streak 13 | 2 4 13 6 Robot Miss Streak 4 | 1 3 2 4 Penetration Max . | . . . . Secondary Targets 2 | . . 1 1 Max Gunslinging Chain 1 | . . 1 1 Shots Hit Robots 76 | 2 16 42 16 Core Hits 36 | 1 7 19 9 Critical Kills . | . . . . Critical Parts Destroyed 1 | . . 1 . Critical Strikes 1 | . . 1 . Destroy 1 | . . 1 . Melee Attacks 7 | . . 3 4 Impact 4 | . . . 4 Slashing . | . . . . Piercing . | . . . . Sneak Attacks 2 | . . 2 . Combat Hostiles . | . . . . Follow-up Attacks . | . . . . Damage Inflicted 1188 | 23 255 613 297 Guns 728 | 23 94 348 263 Cannons 424 | . 161 263 . Explosions . | . . . . Melee 34 | . . . 34 Ramming 2 | . . 2 . Kinetic 1152 | 23 255 611 263 Thermal . | . . . . Explosive . | . . . . Electromagnetic . | . . . . Impact 34 | . . . 34 Slashing . | . . . . Piercing . | . . . . Highest Corruption . | . . . . Average Corruption . | . . . . Corruption Purged . | . . . . Corruption Blocked . | . . . . Overload Shots . | . . . . Overflow Damage 7 | . . . 7 Projectiles . | . . . . Explosions . | . . . . Melee 7 | . . . 7 Knockbacks 5 | . 2 3 . Impact . | . . . . Kinetic 4 | . 2 2 . Secondary 1 | . . 1 . Self-Inflicted Damage . | . . . . Shots . | . . . . Rammed 2 | . . 2 . Targets Rammed 3 | . 1 2 . Kicked 1 | . 1 . . Crushed . | . . . . Highest Temperature 44 | . 2 44 29 Average Temperature 14 | . 2 18 10 Received Heat Transfer 1205 | . 18 656 531 Siege Activations . | . . . . Martial Activations . | . . . . Shielding Activations . | . . . . Robots Disrupted . | . . . . Combat Hostiles . | . . . . Robots Corrupted . | . . . . Combat Hostiles . | . . . . Parts Fried . | . . . . Impact Corruptions 1 | . . . 1 Robots Melted . | . . . . Combat Hostiles . | . . . . Parts Melted . | . . . . Heat Transferred . | . . . . Parts Sabotaged . | . . . . Parts Stolen . | . . . . Parts Stripped . | . . . . Power Chain Reactions . | . . . . Alert | -11 -10 -9 -8 ------- Run | Yrd Mat Mat Mat Maximum Alert Level . | . . . . Low Security (%) 100 | 100 100 100 100 Level 1 . | . . . . Level 2 . | . . . . Level 3 . | . . . . Level 4 . | . . . . Level 5 . | . . . . High Security . | . . . . Max Security . | . . . . Peak Influence 145 | . 40 112 145 Initial . | . . . . Average 15 | . 9 26 21 Influence Increases 506 | . 93 232 181 Destroy 0b10 Robot/C 360 | . 60 200 100 Destroy 0b10 Robot/NC 15 | . 15 . . Destroy Leader 62 | . 12 30 20 Successful Hack 22 | . 6 . 16 Destroy Structure 2 | . . 2 . Lose Combat Pursuer 45 | . . . 45 Influence Decreases 381 | . 93 232 56 Time Decay 241 | . 93 112 36 Lost Part 140 | . . 120 20 Squads Dispatched 3 | . . 1 2 Investigation . | . . . . Extermination . | . . . . Reinforcement 3 | . . 1 2 Assault . | . . . . Garrison . | . . . . Intercept . | . . . . Searches Triggered . | . . . . Construction Impeded . | . . . . Haulers Reinforced . | . . . . Active Scanning Responses . | . . . . Cargo Convoy Interrupts . | . . . . Stealth | -11 -10 -9 -8 --------- Run | Yrd Mat Mat Mat Distress Signals 2 | . . 1 1 Communications Jammed . | . . . . Distress Signals . | . . . . Times Spotted 44 | . 5 19 20 Peak Tracking Total 16 | . 3 11 16 Tactical Retreats 1 | . . . 1 Traps | -11 -10 -9 -8 ------- Run | Yrd Mat Mat Mat Traps Triggered . | . . . . Indirectly . | . . . . Trap Hack Attempts . | . . . . Triggered . | . . . . Disarmed . | . . . . Reprogrammed . | . . . . Reused . | . . . . Traps Extracted . | . . . . Installed . | . . . . Triggered . | . . . . Machines | -11 -10 -9 -8 ---------- Run | Yrd Mat Mat Mat Machines Disabled . | . . . . Max in Single Turn . | . . . . Machines Repaired . | . . . . Machines Dismantled . | . . . . Machines Sabotaged . | . . . . Overloaded Fab Kills . | . . . . Hacking | -11 -10 -9 -8 --------- Run | Yrd Mat Mat Mat Machines Accessed 5 | . 3 . 2 Terminals 4 | . 2 . 2 Fabricators . | . . . . Repair Stations 1 | . 1 . . Recycling Units . | . . . . Scanalyzers . | . . . . Garrison Access . | . . . . Total Hacks 17 | . 8 . 9 Successful 11 | . 6 . 5 Failed 6 | . 2 . 4 Catastrophic 1 | . 1 . . Database Lockouts . | . . . . Manual . | . . . . Terminals 15 | . 6 . 9 Fabricators . | . . . . Repair Stations 2 | . 2 . . Recycling Units . | . . . . Scanalyzers . | . . . . Garrison Access . | . . . . Terminal Hacks 9 | . 4 . 5 Record 7 | . 2 . 5 Prototype ID Bank 1 | . 1 . . Locate Traps 1 | . 1 . . Fabricator Hacks . | . . . . Repair Station Hacks 2 | . 2 . . Scan Component 1 | . 1 . . Repair 1 | . 1 . . Recycling Unit Hacks . | . . . . Scanalyzer . | . . . . Garrison Access Hacks . | . . . . Unauthorized Hacks . | . . . . Terminals . | . . . . Fabricators . | . . . . Repair Stations . | . . . . Recycling Units . | . . . . Scanalyzers . | . . . . Garrison Access . | . . . . Data Cores Recovered . | . . . . Used . | . . . . Hacking Detections 5 | . 3 . 2 Full Trace Events . | . . . . Feedback Events . | . . . . Feedback Blocked . | . . . . Robot Schematics Acquired . | . . . . Robots Built . | . . . . Authchips . | . . . . Time . | . . . . Total Robot Build Rating . | . . . . Part Schematics Acquired . | . . . . Parts Built . | . . . . Authchips . | . . . . Time . | . . . . Total Part Build Rating . | . . . . Part Studies Acquired . | . . . . Parts Repaired 1 | . 1 . . Time 26 | . 26 . . Parts Recycled . | . . . . Recycled Matter . | . . . . Retrieved Matter . | . . . . Retrieved Components . | . . . . Parts Scanalyzed . | . . . . Part Schematics Acquired . | . . . . Parts Damaged . | . . . . Bothacking | -11 -10 -9 -8 ------------ Run | Yrd Mat Mat Mat Used RIF Installer . | . . . . Robots Hacked 2 | . . 2 . Non-combat 1 | . . 1 . Combat 1 | . . 1 . Robot Hacks Applied 2 | . . 2 . parse_system 2 | . . 2 . Relay Couplers Released . | . . . . Fabnet Peak Effective % . | . . . . Robots Rewired . | . . . . Allies Hacked . | . . . . Hacks Repelled . | . . . . Allies | -11 -10 -9 -8 -------- Run | Yrd Mat Mat Mat Total Allies . | . . . . Largest Group . | . . . . Highest-Rated Group . | . . . . Highest-Rated Ally . | . . . . Total Orders . | . . . . Ally Attacks . | . . . . Total Damage . | . . . . Kills . | . . . . Allies Corrupted . | . . . . Allies Melted . | . . . . Intel | -11 -10 -9 -8 ------- Run | Yrd Mat Mat Mat Active Infowar (turns) 736 | . 333 288 115 Seismic 410 | . 258 37 115 T.N.C. 363 | . 75 288 . Robot Analysis Total . | . . . . Derelict Logs Recovered . | . . . . Drone Launches . | . . . . Drone Recoveries . | . . . . Exploration | -11 -10 -9 -8 ------------- Run | Yrd Mat Mat Mat Turns Passed 1056 | 137 373 316 230 Spaces Moved 779 | 87 226 188 278 Core 186 | 20 . 56 110 Treads 31 | . . 31 . Legs 394 | 67 226 101 . Wheels . | . . . . Hover 168 | . . . 168 Flight . | . . . . Fastest Speed 50 | 50 120 50 50 Average Speed 96 | 132 120 106 59 Slowest Speed 200 | 200 120 190 180 Overloaded Moves . | . . . . Propulsion Burnouts . | . . . . Robots Hopped . | . . . . Potential Cave-ins . | . . . . Cave-ins Triggered . | . . . . Exploration Rate (%) 20 | 6 33 21 20 Regions Visited 3 Branch Regions . Pre-discovered Areas . | . . . . Known Exits Taken . | . . . . Unknown Exits Taken 3 | 1 1 1 . Scrap Searched . | . . . . Spaces Dug . | . . . . Terrain Destroyed . | . . . . Melee . | . . . . Projectile . | . . . . AOE . | . . . . Terrain Rammed . | . . . . Walls Destroyed . | . . . . Machines Disabled . | . . . . Actions | -11 -10 -9 -8 --------- Run | Yrd Mat Mat Mat Total 957 | 102 294 248 313 Wait 53 | . 34 11 8 Move 776 | 86 225 187 278 Hop . | . . . . Pick Up 15 | 6 6 . 3 Fast Attach 17 | 6 1 2 8 Attach 11 | . 1 7 3 Detach . | . . . . Swap 8 | 1 4 3 . Drop 5 | . 5 . . Fire 62 | 3 17 33 9 Melee 7 | . . 3 4 Ram . | . . . . Kick 1 | . 1 . . Crush 2 | . . 2 . Escape Stasis . | . . . . Rewire . | . . . . Trap . | . . . . Miscellaneous . | . . . . Route ------- -11/Scrapyard -10/Materials -9/Materials -8/Materials History --------- Turn | Location | Event 37 | -11/Scrapyard | Discovered new exit (range 15) 138 | -11/Scrapyard | Entered Materials 300 | -10/Materials | Build established: Mutant 434 | -10/Materials | Repaired Aluminum Leg 469 | -10/Materials | Discovered new exit (range 4) 511 | -10/Materials | Entered another Materials area 511 | -9/Materials | Evolved 2 slots: Propulsion x1, Utility x1 685 | -9/Materials | Lost 3 parts (1p1u1w) 780 | -9/Materials | Core integrity fell below 50% 799 | -9/Materials | Released all parts (2) 822 | -9/Materials | Discovered new exit (range 7) 827 | -9/Materials | Entered another Materials area 827 | -8/Materials | Evolved 2 slots: Propulsion x1, Utility x1 830 | -8/Materials | Lost 11 parts (1p5n2u3w) 992 | -8/Materials | Released all parts (5) 1022 | -8/Materials | Lost 3 parts (2n1u) 1040 | -8/Materials | Core integrity fell below 50% 1051 | -8/Materials | Core integrity fell below 20% 1057 | -8/Materials | Destroyed by Y-45 Defender with Beam Rifle Last Messages --------------- S-10 Pest destroyed. G-47 Trooper destroyed. Switching to secondary target: G-47 Trooper. Acquired 52 matter. Critical hit (Burn: +37). R-06 Scavenger collects Flight Unit. G-47 Trooper destroyed. Shotgun destroyed. Critical hit (Burn: +37). R-06 Scavenger collects Particle Gun. Shotgun destroyed. Acquired Hvy. Flail. Acquired 19 matter. Critical hit (Burn: +37). R-06 Scavenger collects Lgt. Assault Rifle. Electrolysis Chamber disabled. Y-45 Defender suffers critical hit (Burn). Destroyed Lgt. Nuclear Core. G-47 Trooper system corrupted by crushing effect. Map ----- +----------------------------------------------------+ | ?????????????????????????????????????????????????? | | ?????????????????????????????????????????????????? | | ?????????????????????????????????????????????????? | | ?????????????????????????????????????????????????? | | ?????????????????????????????????????????????????? | | ?????????????????????????????????????????????????? | | ?????????????????????????????????????????????????? | | ?????????????????????????????????????????????????? | | ?????????????????????????????????????????????????? | | ?????????????????????????????????????????????????? | | ?????????????????????????????????????????????????? | | ???????????????????????????????? ????????????????? | | ??????????????????????????????? ????????????????? | | ????????????????????????????? ""????????????????? | | ????????????????????????????? """???????????????? | | ???????????????????????????? """ ?????????????? | | ??????????????????????????? ?????????????? | | ?????????????????????????? ????????????? | | ???????#####+############# ????????????? | | ??????? #???????????? | | ??????? ! = #???????????? | | ??????? #???????????? | | ??????????????###### ###########???????????????? | | ???????????????????# #[=!!/ #???????????????? | | ???????????????????# #YY!! !#???????????????? | | ???????????????????# =Yg@! * #???????????????? | | ???????????????????# g#g*%= #???????????????? | | ???????????????????# #=" " """ #???????????????? | | ???????????????????# # "" """ #???????????????? | | ???????????????????# # """ """ #???????????????? | | ???????????????????# # #???????????????? | | ???????????????????# ### #######???????????????? | | ???????????????????# ########### ??????????????? | | ???????????????????# ?????????????? | | ???????????????????# ?????????????? | | ???????????????????# ?????????????? | | ???????????????????# ############??????????????? | | ?#?????????????????# #?????????????????????????? | | ?# ????????????????# #?????????????????????????? | | ?# ???????????????# #?????????????????????????? | | ?# ??????????????# #?????????????????????????? | | ??? ?????????????# #?????????????????????????? | | ????? ????????????# #???????#######???????????? | | #######+############ ######### #???????????? | | #???????????? | | ! #???????????? | | *[! #???????????? | | #####+##### ##############+### #???????????? | | # !## #??????# ## ##???????????? | | #[[[ ## #??????# ## #????????????? | +----------------------------------------------------+ Best States ------------- Heat Dissipation 31 Energy Generation 10 Energy Capacity 250 Matter Stores 300 Matter Capacity 300 Sight Range 16 Terrain Scan Density 10 Armor Coverage 150 Evasion (%) 61 Melee Accuracy 5 Recoil Reduction 2 Item Schematics ----------------- None Robot Schematics ------------------ None Fabricated ------------ Nothing Repaired ---------- Aluminum Leg | 42% | -10/Materials Studied --------- None Alien Tech Used ----------------- None Achievements -------------- Bumper Bots Challenges ------------ None Game ------ Seed ArcLaunchDistortion Manual? 0 Play Time 00:20:17 Cumulative 6.1 hours Start 2026.09.24 @ 22:37:32 End 2026.09.24 @ 22:56:57 Sessions 1 Manual Loads 0 Difficulty Rogue Special Mode None Game No. 9 Rogue 9 Adventurer 0 Explorer 0 Win Type - Total 0 Types 0/0/0/0/0/0/0/0/0/0 Lore% 6 Gallery% 9 Achievement% 10 Wizard Run 0 Options --------- Layout 1 ASCII 0 Keyboard 0 Movement Arrows Keybinds 0 Fullscreen 1 Font 24/Smallcaps Map View 50x35 Zoom Use 0% Tactical HUD 0 Map Filters NONE Filters NONE Steam 1 RUN: db5e41c8-9250-4263-a138-e8a2bb02f91a